[Event "*** SCC Grand Prix: Titled Tuesday Blitz"]
[Site "Chess.com"]
[Date "2020.09.29"]
[Round "4"]
[White "Harsha_Bharathakoti"]
[Black "Rytenko_V"]
[Result "1-0"]
[WhiteElo "2752"]
[BlackElo "2511"]
[TimeControl "180+1"]
[EndTime "10:40:15 PDT"]
[Termination "Harsha_Bharathakoti won by resignation"]

1. d4 {[%clk 0:03:00.4]} 1... Nf6 {[%clk 0:02:16.3]} 2. c4 {[%clk 0:02:58.4]}
2... c5 {[%clk 0:02:12.7]} 3. d5 {[%clk 0:02:58.4]} 3... b5 {[%clk 0:02:12.6]}
4. cxb5 {[%clk 0:02:59.3]} 4... a6 {[%clk 0:02:12.8]} 5. e3 {[%clk 0:02:59.2]}
5... axb5 {[%clk 0:02:09.5]} 6. Bxb5 {[%clk 0:03:00.1]} 6... Qa5+ {[%clk
0:02:09.6]} 7. Nc3 {[%clk 0:03:00.4]} 7... Ne4 {[%clk 0:02:06.7]} 8. Ne2 {[%clk
0:02:54.3]} 8... g6 {[%clk 0:01:57.5]} 9. O-O {[%clk 0:02:48.4]} 9... Nxc3
{[%clk 0:01:57]} 10. Nxc3 {[%clk 0:02:49.3]} 10... Bg7 {[%clk 0:01:57.5]} 11. a4
{[%clk 0:02:50]} 11... O-O {[%clk 0:01:56.5]} 12. e4 {[%clk 0:02:28.8]} 12... d6
{[%clk 0:01:44.1]} 13. Bg5 {[%clk 0:02:27.2]} 13... Ra7 {[%clk 0:01:42.2]} 14.
Qd2 {[%clk 0:02:16.2]} 14... Ba6 {[%clk 0:01:41.7]} 15. Ra3 {[%clk 0:02:12.1]}
15... Qb4 {[%clk 0:01:28]} 16. Bxa6 {[%clk 0:01:53.6]} 16... Nxa6 {[%clk
0:01:26.2]} 17. Nb5 {[%clk 0:01:44.1]} 17... Qxd2 {[%clk 0:00:54.3]} 18. Bxd2
{[%clk 0:01:45]} 18... Raa8 {[%clk 0:00:54.9]} 19. Bc3 {[%clk 0:01:35.8]} 19...
Rfb8 {[%clk 0:00:55.3]} 20. f4 {[%clk 0:01:09]} 20... Nb4 {[%clk 0:00:47.2]} 21.
Bxg7 {[%clk 0:01:09.1]} 21... Kxg7 {[%clk 0:00:47.1]} 22. Rc1 {[%clk 0:01:09.8]}
22... Ra5 {[%clk 0:00:43.4]} 23. Kf2 {[%clk 0:01:05.4]} 23... Rba8 {[%clk
0:00:20.7]} 24. e5 {[%clk 0:00:50.7]} 24... Rxa4 {[%clk 0:00:18.8]} 25. exd6
{[%clk 0:00:21.3]} 25... Rxa3 {[%clk 0:00:18.3]} 26. bxa3 {[%clk 0:00:22.2]}
26... Nd3+ {[%clk 0:00:16.9]} 27. Kf1 {[%clk 0:00:21.4]} 27... Nxc1 {[%clk
0:00:17.8]} 28. dxe7 {[%clk 0:00:21.9]} 28... Kf6 {[%clk 0:00:18.4]} 29. Nc7
{[%clk 0:00:22.3]} 29... Kxe7 {[%clk 0:00:17.2]} 30. Nxa8 {[%clk 0:00:22.6]}
30... Kd6 {[%clk 0:00:17.9]} 31. Nb6 {[%clk 0:00:23.2]} 31... Nd3 {[%clk
0:00:18.1]} 32. g3 {[%clk 0:00:21]} 32... Nb2 {[%clk 0:00:13]} 33. Ke2 {[%clk
0:00:21.3]} 33... c4 {[%clk 0:00:13.9]} 34. Kd2 {[%clk 0:00:21.9]} 34... Kc5
{[%clk 0:00:14.6]} 35. Nd7+ {[%clk 0:00:08.9]} 35... Kxd5 {[%clk 0:00:14.6]} 36.
Nf6+ {[%clk 0:00:09.8]} 36... Kd4 {[%clk 0:00:14.8]} 37. Kc2 {[%clk 0:00:10.5]}
37... Nd3 {[%clk 0:00:13.5]} 38. Nxh7 {[%clk 0:00:09.8]} 38... c3 {[%clk
0:00:13.8]} 39. Ng5 {[%clk 0:00:10.5]} 39... f6 {[%clk 0:00:13.2]} 40. Nf3+
{[%clk 0:00:10]} 40... Ke4 {[%clk 0:00:12.8]} 41. Kxc3 {[%clk 0:00:10.9]} 41...
Nc5 {[%clk 0:00:11.8]} 42. Nd2+ {[%clk 0:00:10]} 42... Ke3 {[%clk 0:00:11.9]}
43. Nc4+ {[%clk 0:00:09.1]} 43... Kf2 {[%clk 0:00:12.4]} 44. Kd4 {[%clk
0:00:10]} 44... Nb3+ {[%clk 0:00:12.3]} 45. Kc3 {[%clk 0:00:06.3]} 45... Nc5
{[%clk 0:00:12.3]} 46. Kd4 {[%clk 0:00:05]} 46... Nb3+ {[%clk 0:00:12]} 47. Kd5
{[%clk 0:00:05.9]} 47... Kg2 {[%clk 0:00:12]} 48. g4 {[%clk 0:00:05.1]} 48...
Kxh2 {[%clk 0:00:10.9]} 49. f5 {[%clk 0:00:05.7]} 49... gxf5 {[%clk 0:00:08.5]}
50. gxf5 {[%clk 0:00:06.6]} 50... Kg3 {[%clk 0:00:08.5]} 51. Ke6 {[%clk
0:00:07.5]} 51... Kg4 {[%clk 0:00:07.8]} 52. Kxf6 {[%clk 0:00:08.2]} 52... Nd4
{[%clk 0:00:08.4]} 53. Nd6 {[%clk 0:00:07.6]} 53... Kf4 {[%clk 0:00:08.9]} 54.
a4 {[%clk 0:00:08.1]} 54... Nc6 {[%clk 0:00:08.1]} 55. Ke6 {[%clk 0:00:07.4]}
55... Kg5 {[%clk 0:00:07.6]} 56. f6 {[%clk 0:00:07.6]} 56... Kg6 {[%clk
0:00:07.8]} 57. f7 {[%clk 0:00:08.1]} 57... Kg7 {[%clk 0:00:08.4]} 58. Kd5
{[%clk 0:00:08.7]} 58... Nb8 {[%clk 0:00:07.7]} 59. a5 {[%clk 0:00:08.2]} 59...
Kf8 {[%clk 0:00:08]} 60. Kc5 {[%clk 0:00:07.5]} 60... Ke7 {[%clk 0:00:07.7]} 61.
Kb6 {[%clk 0:00:08]} 61... Nd7+ {[%clk 0:00:07.4]} 62. Kc7 {[%clk 0:00:08.6]}
62... Nc5 {[%clk 0:00:07.6]} 63. Kc6 {[%clk 0:00:09.1]} 63... Na6 {[%clk
0:00:07.8]} 64. Kb6 {[%clk 0:00:08.3]} 64... Nb8 {[%clk 0:00:07.3]} 65. a6
{[%clk 0:00:08.9]} 65... Nd7+ {[%clk 0:00:07.8]} 66. Kb5 {[%clk 0:00:08.1]}
66... Kxd6 {[%clk 0:00:07.9]} 67. a7 {[%clk 0:00:08.2]} 1-0

[Event "*** SCC Grand Prix: Titled Tuesday Blitz"]
[Site "Chess.com"]
[Date "2020.09.29"]
[Round "4"]
[White "GregShahade"]
[Black "gui_borba"]
[Result "1-0"]
[WhiteElo "2621"]
[BlackElo "2428"]
[TimeControl "180+1"]
[EndTime "10:40:18 PDT"]
[Termination "GregShahade won by checkmate"]

1. e4 {[%clk 0:03:00.9]} 1... c6 {[%clk 0:03:00]} 2. Nc3 {[%clk 0:03:00.3]} 2...
d5 {[%clk 0:03:00.9]} 3. Nf3 {[%clk 0:03:00.3]} 3... dxe4 {[%clk 0:03:00.1]} 4.
Nxe4 {[%clk 0:03:01.2]} 4... Nf6 {[%clk 0:03:00.6]} 5. Qe2 {[%clk 0:03:01.4]}
5... Nxe4 {[%clk 0:03:00.6]} 6. Qxe4 {[%clk 0:03:02.3]} 6... Qd5 {[%clk
0:03:01.1]} 7. Qf4 {[%clk 0:03:02.7]} 7... Qf5 {[%clk 0:03:00.8]} 8. Qe3 {[%clk
0:03:02.9]} 8... Qe6 {[%clk 0:03:00.7]} 9. b3 {[%clk 0:03:03.4]} 9... Qxe3+
{[%clk 0:03:00.4]} 10. fxe3 {[%clk 0:03:04.3]} 10... f6 {[%clk 0:03:00.9]} 11.
Bb2 {[%clk 0:03:01.8]} 11... e5 {[%clk 0:03:00.9]} 12. O-O-O {[%clk 0:03:02.2]}
12... Be6 {[%clk 0:03:00.9]} 13. Rg1 {[%clk 0:02:59.6]} 13... Nd7 {[%clk
0:03:00.7]} 14. g4 {[%clk 0:02:59.6]} 14... a5 {[%clk 0:02:35.2]} 15. a4 {[%clk
0:02:55.6]} 15... Nc5 {[%clk 0:02:29.5]} 16. d4 {[%clk 0:02:47.4]} 16... exd4
{[%clk 0:02:24.3]} 17. exd4 {[%clk 0:02:47.6]} 17... Nd7 {[%clk 0:02:22.4]} 18.
Re1 {[%clk 0:02:40.4]} 18... Kf7 {[%clk 0:02:21.7]} 19. g5 {[%clk 0:02:32.7]}
19... Bb4 {[%clk 0:02:20.4]} 20. c3 {[%clk 0:02:15.6]} 20... Bd6 {[%clk
0:02:19.5]} 21. gxf6 {[%clk 0:02:15.4]} 21... gxf6 {[%clk 0:02:18.3]} 22. Bd3
{[%clk 0:01:32.5]} 22... Bxb3 {[%clk 0:02:10.4]} 23. c4 {[%clk 0:01:16.8]} 23...
Bxa4 {[%clk 0:01:40.5]} 24. Ref1 {[%clk 0:01:09.5]} 24... Bf4+ {[%clk
0:01:12.3]} 25. Kb1 {[%clk 0:01:08.9]} 25... Rag8 {[%clk 0:01:07.9]} 26. Rxg8
{[%clk 0:00:43.7]} 26... Rxg8 {[%clk 0:01:08.8]} 27. Bxh7 {[%clk 0:00:42.8]}
27... Rh8 {[%clk 0:01:04.6]} 28. Bf5 {[%clk 0:00:42.6]} 28... Nf8 {[%clk
0:01:04.8]} 29. d5 {[%clk 0:00:34.1]} 29... cxd5 {[%clk 0:00:59.4]} 30. cxd5
{[%clk 0:00:35]} 30... Bd7 {[%clk 0:00:59.7]} 31. Bc2 {[%clk 0:00:29.3]} 31...
Ng6 {[%clk 0:00:45.4]} 32. h4 {[%clk 0:00:19.6]} 32... Nxh4 {[%clk 0:00:35.9]}
33. Ne1 {[%clk 0:00:10.6]} 33... Bg5 {[%clk 0:00:29.5]} 34. Nd3 {[%clk
0:00:10.8]} 34... Bf5 {[%clk 0:00:19.9]} 35. Ne5+ {[%clk 0:00:11.1]} 35... fxe5
{[%clk 0:00:19.7]} 36. Bxf5 {[%clk 0:00:11.5]} 36... Bf4 {[%clk 0:00:16.7]} 37.
Be6+ {[%clk 0:00:08.7]} 37... Ke7 {[%clk 0:00:16.5]} 38. Rxf4 {[%clk 0:00:08.6]}
38... exf4 {[%clk 0:00:13.5]} 39. Bxh8 {[%clk 0:00:09.5]} 39... f3 {[%clk
0:00:14.1]} 40. Bd4 {[%clk 0:00:09.6]} 40... Ng2 {[%clk 0:00:11.9]} 41. Bg4
{[%clk 0:00:06.5]} 41... Nf4 {[%clk 0:00:10.3]} 42. Bxf3 {[%clk 0:00:05.4]}
42... Kd6 {[%clk 0:00:10.7]} 43. Bb6 {[%clk 0:00:03.2]} 43... Nxd5 {[%clk
0:00:10.9]} 44. Bxa5 {[%clk 0:00:03.8]} 44... Kc5 {[%clk 0:00:11.2]} 45. Bd2
{[%clk 0:00:04.1]} 45... b5 {[%clk 0:00:11.3]} 46. Kc2 {[%clk 0:00:04.2]} 46...
b4 {[%clk 0:00:11.2]} 47. Kb3 {[%clk 0:00:04.5]} 47... Nc3 {[%clk 0:00:11.2]}
48. Be3+ {[%clk 0:00:04.5]} 48... Kb5 {[%clk 0:00:10.9]} 49. Bg2 {[%clk
0:00:04.9]} 49... Ka5 {[%clk 0:00:10]} 50. Bf1 {[%clk 0:00:04.3]} 50... Nb5
{[%clk 0:00:07.2]} 51. Bc5 {[%clk 0:00:04.6]} 51... Nc3 {[%clk 0:00:07.3]} 52.
Bxb4+ {[%clk 0:00:04.8]} 52... Kb6 {[%clk 0:00:05.7]} 53. Kxc3 {[%clk
0:00:05.4]} 53... Kc6 {[%clk 0:00:06.2]} 54. Kd4 {[%clk 0:00:06]} 54... Kb6
{[%clk 0:00:05.6]} 55. Bc4 {[%clk 0:00:06.7]} 55... Kc7 {[%clk 0:00:06]} 56. Kd5
{[%clk 0:00:07.2]} 56... Kb7 {[%clk 0:00:06.2]} 57. Bb5 {[%clk 0:00:07.8]} 57...
Kb6 {[%clk 0:00:06.5]} 58. Kc4 {[%clk 0:00:08.4]} 58... Kb7 {[%clk 0:00:06.9]}
59. Bc5 {[%clk 0:00:08.7]} 59... Kc7 {[%clk 0:00:07.6]} 60. Kd5 {[%clk
0:00:09.3]} 60... Kb7 {[%clk 0:00:08.1]} 61. Kd6 {[%clk 0:00:09.7]} 61... Kb8
{[%clk 0:00:07.7]} 62. Kd7 {[%clk 0:00:09.4]} 62... Kb7 {[%clk 0:00:08]} 63. Kd6
{[%clk 0:00:09]} 63... Kb8 {[%clk 0:00:08.5]} 64. Kc6 {[%clk 0:00:09.7]} 64...
Ka8 {[%clk 0:00:08.4]} 65. Bb6 {[%clk 0:00:09.8]} 65... Kb8 {[%clk 0:00:08.5]}
66. Bc4 {[%clk 0:00:10.3]} 66... Ka8 {[%clk 0:00:08.2]} 67. Bd5 {[%clk
0:00:10.9]} 67... Kb8 {[%clk 0:00:08.9]} 68. Be4 {[%clk 0:00:10.8]} 68... Kc8
{[%clk 0:00:09.2]} 69. Bf5+ {[%clk 0:00:10.7]} 69... Kb8 {[%clk 0:00:09.8]} 70.
Be6 {[%clk 0:00:10.2]} 70... Ka8 {[%clk 0:00:09.9]} 71. Be3 {[%clk 0:00:10]}
71... Kb8 {[%clk 0:00:10.8]} 72. Kb6 {[%clk 0:00:09.6]} 72... Ka8 {[%clk
0:00:10.5]} 73. Bf2 {[%clk 0:00:09.9]} 73... Kb8 {[%clk 0:00:10.7]} 74. Bg3+
{[%clk 0:00:10.7]} 74... Ka8 {[%clk 0:00:11.3]} 75. Bd5# {[%clk 0:00:11.4]} 1-0

[Event "*** SCC Grand Prix: Titled Tuesday Blitz"]
[Site "Chess.com"]
[Date "2020.09.29"]
[Round "4"]
[White "guillembaches"]
[Black "Srisshhhtea"]
[Result "0-1"]
[WhiteElo "2413"]
[BlackElo "2290"]
[TimeControl "180+1"]
[EndTime "10:40:21 PDT"]
[Termination "Srisshhhtea won on time"]

1. e4 {[%clk 0:03:00.9]} 1... c6 {[%clk 0:02:51.2]} 2. c4 {[%clk 0:02:59.8]}
2... d5 {[%clk 0:02:51.2]} 3. exd5 {[%clk 0:03:00.7]} 3... cxd5 {[%clk
0:02:51.5]} 4. cxd5 {[%clk 0:03:01.6]} 4... Nf6 {[%clk 0:02:51.6]} 5. Nc3 {[%clk
0:03:02.1]} 5... Nxd5 {[%clk 0:02:51.3]} 6. Nf3 {[%clk 0:03:02.7]} 6... Nc6
{[%clk 0:02:51.7]} 7. Bb5 {[%clk 0:03:02.6]} 7... e6 {[%clk 0:02:50.7]} 8. O-O
{[%clk 0:03:02.4]} 8... Be7 {[%clk 0:02:50.5]} 9. d4 {[%clk 0:03:02.2]} 9... O-O
{[%clk 0:02:51]} 10. Re1 {[%clk 0:03:00.3]} 10... Bf6 {[%clk 0:02:43.2]} 11. a3
{[%clk 0:02:56.4]} 11... Bd7 {[%clk 0:02:42.9]} 12. Qd3 {[%clk 0:02:49.3]} 12...
Rc8 {[%clk 0:02:40.1]} 13. Bc4 {[%clk 0:02:36.4]} 13... Nce7 {[%clk 0:02:36.1]}
14. Bb3 {[%clk 0:02:33.7]} 14... Bc6 {[%clk 0:02:33.9]} 15. Ne5 {[%clk
0:02:28.3]} 15... Bxe5 {[%clk 0:02:24.2]} 16. Rxe5 {[%clk 0:02:24.1]} 16... Ng6
{[%clk 0:02:23.8]} 17. Rh5 {[%clk 0:02:05.9]} 17... Nxc3 {[%clk 0:02:13.7]} 18.
bxc3 {[%clk 0:02:00.1]} 18... Qb6 {[%clk 0:00:46.1]} 19. Bc2 {[%clk 0:01:42.1]}
19... Qa6 {[%clk 0:00:45.4]} 20. c4 {[%clk 0:01:23.3]} 20... Ba4 {[%clk
0:00:39.8]} 21. Bxa4 {[%clk 0:01:11.8]} 21... Qxa4 {[%clk 0:00:40.7]} 22. c5
{[%clk 0:01:07.8]} 22... Rfd8 {[%clk 0:00:36.6]} 23. Be3 {[%clk 0:01:07.1]}
23... Qc6 {[%clk 0:00:32.7]} 24. h3 {[%clk 0:01:01.9]} 24... Rd5 {[%clk
0:00:32.9]} 25. Rxd5 {[%clk 0:00:59.2]} 25... Qxd5 {[%clk 0:00:33.8]} 26. Rb1
{[%clk 0:00:58.1]} 26... Rd8 {[%clk 0:00:32]} 27. Qb3 {[%clk 0:00:56.6]} 27...
Rd7 {[%clk 0:00:20.4]} 28. Qxd5 {[%clk 0:00:42.6]} 28... exd5 {[%clk 0:00:20.4]}
29. Kf1 {[%clk 0:00:36.3]} 29... f6 {[%clk 0:00:20.1]} 30. Ke2 {[%clk 0:00:36]}
30... Kf7 {[%clk 0:00:20.3]} 31. Kd3 {[%clk 0:00:34.2]} 31... Ne7 {[%clk
0:00:20.7]} 32. g4 {[%clk 0:00:33.6]} 32... Nc6 {[%clk 0:00:21.2]} 33. f3 {[%clk
0:00:31.7]} 33... Ke6 {[%clk 0:00:21.1]} 34. Bf2 {[%clk 0:00:30.6]} 34... Kf7
{[%clk 0:00:21.3]} 35. Re1 {[%clk 0:00:29.3]} 35... Re7 {[%clk 0:00:21]} 36. Rb1
{[%clk 0:00:29.1]} 36... Nd8 {[%clk 0:00:20.1]} 37. Bg3 {[%clk 0:00:28.2]} 37...
Kg6 {[%clk 0:00:20.2]} 38. Bd6 {[%clk 0:00:27.4]} 38... Rd7 {[%clk 0:00:20.7]}
39. Re1 {[%clk 0:00:26.8]} 39... Kf7 {[%clk 0:00:20.9]} 40. Bb8 {[%clk
0:00:24.1]} 40... Nc6 {[%clk 0:00:21.1]} 41. Bd6 {[%clk 0:00:23.7]} 41... Nd8
{[%clk 0:00:21.6]} 42. Rb1 {[%clk 0:00:22.1]} 42... h6 {[%clk 0:00:21.1]} 43. a4
{[%clk 0:00:20.9]} 43... Ne6 {[%clk 0:00:20.9]} 44. Bg3 {[%clk 0:00:19.6]} 44...
Ng5 {[%clk 0:00:20.3]} 45. Ke2 {[%clk 0:00:15.1]} 45... Nxh3 {[%clk 0:00:19.9]}
46. f4 {[%clk 0:00:15.2]} 46... g5 {[%clk 0:00:19.8]} 47. f5 {[%clk 0:00:14.7]}
47... Re7+ {[%clk 0:00:17]} 48. Kf3 {[%clk 0:00:13.8]} 48... Kg7 {[%clk
0:00:15.1]} 49. a5 {[%clk 0:00:13.8]} 49... a6 {[%clk 0:00:14.8]} 50. Rb5 {[%clk
0:00:11.1]} 50... Ng1+ {[%clk 0:00:14.7]} 51. Kg2 {[%clk 0:00:10.4]} 51... axb5
{[%clk 0:00:14.6]} 52. Kxg1 {[%clk 0:00:09.8]} 52... Re3 {[%clk 0:00:14.3]} 53.
Kf2 {[%clk 0:00:08.7]} 53... Ra3 {[%clk 0:00:14.3]} 54. Bc7 {[%clk 0:00:05.7]}
54... b4 {[%clk 0:00:14.3]} 55. Ke2 {[%clk 0:00:04.9]} 55... b3 {[%clk
0:00:14.5]} 56. Kd2 {[%clk 0:00:05.2]} 56... h5 {[%clk 0:00:13.3]} 57. gxh5
{[%clk 0:00:03.4]} 57... g4 {[%clk 0:00:13.7]} 58. Kc3 {[%clk 0:00:02.8]} 58...
g3 {[%clk 0:00:13.3]} 59. Bxg3 {[%clk 0:00:01.6]} 59... b2+ {[%clk 0:00:13.8]}
60. Kxb2 {[%clk 0:00:01.7]} 60... Rxg3 {[%clk 0:00:14.7]} 61. c6 {[%clk
0:00:00.6]} 61... bxc6 {[%clk 0:00:15.1]} 62. a6 {[%clk 0:00:01.2]} 62... Kh6
{[%clk 0:00:15.2]} 63. a7 {[%clk 0:00:01.7]} 63... Rg8 {[%clk 0:00:15.7]} 0-1

[Event "*** SCC Grand Prix: Titled Tuesday Blitz"]
[Site "Chess.com"]
[Date "2020.09.29"]
[Round "4"]
[White "Kildepiotr"]
[Black "Snegokhod"]
[Result "1-0"]
[WhiteElo "2555"]
[BlackElo "2403"]
[TimeControl "180+1"]
[EndTime "10:40:23 PDT"]
[Termination "Kildepiotr won on time"]

1. Nf3 {[%clk 0:03:00.9]} 1... Nf6 {[%clk 0:02:59.6]} 2. g3 {[%clk 0:03:01.1]}
2... g6 {[%clk 0:02:59.2]} 3. Bg2 {[%clk 0:03:01.7]} 3... Bg7 {[%clk 0:02:59.8]}
4. O-O {[%clk 0:03:02.5]} 4... O-O {[%clk 0:03:00.4]} 5. d4 {[%clk 0:03:03.1]}
5... d5 {[%clk 0:02:59.6]} 6. c4 {[%clk 0:03:02.4]} 6... c6 {[%clk 0:02:59.4]}
7. Nc3 {[%clk 0:03:02.5]} 7... dxc4 {[%clk 0:02:59]} 8. a4 {[%clk 0:03:01.8]}
8... a5 {[%clk 0:02:53.8]} 9. e3 {[%clk 0:03:01.1]} 9... Na6 {[%clk 0:02:45.5]}
10. Ne5 {[%clk 0:03:00.6]} 10... Be6 {[%clk 0:02:45]} 11. Qe2 {[%clk 0:03:00.2]}
11... Nd5 {[%clk 0:02:35.5]} 12. Nxc4 {[%clk 0:02:58.5]} 12... Nxc3 {[%clk
0:02:27]} 13. bxc3 {[%clk 0:02:58]} 13... Bd5 {[%clk 0:02:26.7]} 14. e4 {[%clk
0:02:57]} 14... Be6 {[%clk 0:02:19.6]} 15. Rd1 {[%clk 0:02:53.6]} 15... f5
{[%clk 0:02:06.3]} 16. Rb1 {[%clk 0:02:45.2]} 16... Rb8 {[%clk 0:02:03.2]} 17.
d5 {[%clk 0:02:32.6]} 17... cxd5 {[%clk 0:02:02.1]} 18. exd5 {[%clk 0:02:32.5]}
18... Bd7 {[%clk 0:01:58.5]} 19. Nb6 {[%clk 0:02:25.3]} 19... Nc5 {[%clk
0:01:54.8]} 20. Bf4 {[%clk 0:02:20]} 20... Bxa4 {[%clk 0:01:50.1]} 21. Nxa4
{[%clk 0:02:17.9]} 21... Nxa4 {[%clk 0:01:49.9]} 22. Bxb8 {[%clk 0:02:10.2]}
22... Qxb8 {[%clk 0:01:48.2]} 23. Qxe7 {[%clk 0:02:03.8]} 23... Rf7 {[%clk
0:01:38.5]} 24. Qe6 {[%clk 0:01:50.3]} 24... Nxc3 {[%clk 0:01:37.1]} 25. d6
{[%clk 0:01:50.1]} 25... Nxd1 {[%clk 0:01:19.6]} 26. Rxb7 {[%clk 0:01:41]} 26...
Qxb7 {[%clk 0:01:10.5]} 27. Bxb7 {[%clk 0:01:40.3]} 27... Nc3 {[%clk 0:01:10.5]}
28. Bd5 {[%clk 0:01:26.3]} 28... Nxd5 {[%clk 0:01:10]} 29. Qxd5 {[%clk
0:01:26.6]} 29... Bf6 {[%clk 0:01:07.3]} 30. Qxa5 {[%clk 0:01:23.5]} 30... Rd7
{[%clk 0:00:55.2]} 31. Qc7 {[%clk 0:01:14.6]} 31... Rd8 {[%clk 0:00:50]} 32. Kg2
{[%clk 0:01:07.2]} 32... Rf8 {[%clk 0:00:49.3]} 33. Qd7 {[%clk 0:01:05.9]} 33...
Rf7 {[%clk 0:00:43.9]} 34. Qe8+ {[%clk 0:01:04.8]} 34... Kg7 {[%clk 0:00:43.9]}
35. Kf3 {[%clk 0:01:00.5]} 35... Rf8 {[%clk 0:00:37.1]} 36. Qd7+ {[%clk
0:00:57.3]} 36... Rf7 {[%clk 0:00:37.5]} 37. Qe6 {[%clk 0:00:57.6]} 37... Bd8
{[%clk 0:00:31.3]} 38. h3 {[%clk 0:00:54.9]} 38... Kf8 {[%clk 0:00:29]} 39. Kg2
{[%clk 0:00:53]} 39... Rf6 {[%clk 0:00:29.1]} 40. Qd5 {[%clk 0:00:49.4]} 40...
Ke8 {[%clk 0:00:26.8]} 41. Qc6+ {[%clk 0:00:47.6]} 41... Kf8 {[%clk 0:00:25.8]}
42. f4 {[%clk 0:00:45.8]} 42... Rf7 {[%clk 0:00:24.9]} 43. Kf3 {[%clk 0:00:44]}
43... Kg7 {[%clk 0:00:18.3]} 44. Qc3+ {[%clk 0:00:42.2]} 44... Bf6 {[%clk
0:00:17.3]} 45. Qc8 {[%clk 0:00:37.8]} 45... Rf8 {[%clk 0:00:16.7]} 46. Qd7+
{[%clk 0:00:37.3]} 46... Rf7 {[%clk 0:00:17]} 47. Qe6 {[%clk 0:00:37.8]} 47...
Rf8 {[%clk 0:00:16.7]} 48. g4 {[%clk 0:00:37.8]} 48... fxg4+ {[%clk 0:00:15.5]}
49. hxg4 {[%clk 0:00:38.7]} 49... g5 {[%clk 0:00:15.4]} 50. f5 {[%clk
0:00:36.4]} 50... Rf7 {[%clk 0:00:14.1]} 51. Ke4 {[%clk 0:00:34.3]} 51... Rf8
{[%clk 0:00:14.4]} 52. d7 {[%clk 0:00:33.1]} 52... Bd8 {[%clk 0:00:09.9]} 53.
Kd5 {[%clk 0:00:31.2]} 53... Rf7 {[%clk 0:00:09.8]} 54. Qe8 {[%clk 0:00:27]}
54... Rf8 {[%clk 0:00:09.7]} 55. Qe5+ {[%clk 0:00:26.7]} 55... Bf6 {[%clk
0:00:09.7]} 56. Qe6 {[%clk 0:00:26.1]} 56... Bd8 {[%clk 0:00:09.2]} 57. Qc6
{[%clk 0:00:23.3]} 57... Rf7 {[%clk 0:00:08.4]} 58. Qc8 {[%clk 0:00:21.7]} 58...
Rf8 {[%clk 0:00:08.5]} 59. Qb7 {[%clk 0:00:17.8]} 59... Rf6 {[%clk 0:00:07.3]}
60. Qb8 {[%clk 0:00:16.3]} 60... Rf8 {[%clk 0:00:07.4]} 61. Qb2+ {[%clk
0:00:15.2]} 61... Bf6 {[%clk 0:00:07]} 62. Qd2 {[%clk 0:00:15.2]} 62... Bd8
{[%clk 0:00:06.9]} 63. Kc6 {[%clk 0:00:15.4]} 63... Rf6+ {[%clk 0:00:06.5]} 64.
Kb7 {[%clk 0:00:15.5]} 64... h6 {[%clk 0:00:05.4]} 65. Qd4 {[%clk 0:00:13.7]}
65... Kg8 {[%clk 0:00:04.6]} 66. Qd5+ {[%clk 0:00:10.4]} 66... Kg7 {[%clk
0:00:04.5]} 67. Qe5 {[%clk 0:00:10.6]} 67... Kf7 {[%clk 0:00:04.3]} 68. Qe8+
{[%clk 0:00:10]} 68... Kg7 {[%clk 0:00:04.5]} 69. Qxd8 {[%clk 0:00:10.3]} 69...
Rf7 {[%clk 0:00:03.4]} 70. Qe8 {[%clk 0:00:10.1]} 1-0